bitfinex-derivatives/quotes_SOLF0:USTF0_20250111
["timestamp","ask_amount","ask_price","bid_price","bid_amount"]
[1736634025129,2.6382,189.59,189.56,6.92818194]
[1736634027031,2.6382,189.59,189.55,6.128]
[1736634027231,2.6382,189.59,189.55,13.05618194]
[1736634028830,2.6382,189.59,189.55,15.69488194]
[1736634029034,2.6382,189.59,189.57,6.92818194]
[1736634029228,2.638,189.61,189.57,6.92818194]
[1736634029434,6.92818194,189.64,189.57,6.92818194]
[1736634030233,2.6378,189.62,189.57,9.56658194]
[1736634034234,2.6378,189.62,189.58,2.6383]
[1736634037333,2.6379,189.61,189.57,2.6383]
[1736634037537,6.92818194,189.62,189.55,6.128]
[1736634037938,9.56578194,189.63,189.57,2.6384]
[1736634038242,6.92818194,189.63,189.57,2.6384]
[1736634038633,5.34,189.66,189.58,9.56648194]
[1736634038840,6.92818194,189.65,189.58,9.56648194]
[1736634040137,2.6379,189.61,189.58,9.56648194]
[1736634040831,5.34,189.66,189.58,6.92818194]
[1736634041029,6.92818194,189.67,189.6,6.92818194]
[1736634041433,2.6373,189.65,189.61,2.6378]
[1736634041933,2.6373,189.65,189.6,6.92818194]
[1736634042136,2.6373,189.65,189.55,6.128]
[1736634042137,2.637,189.67,189.62,6.92818194]
[1736634042838,2.6372,189.66,189.62,6.92818194]
[1736634045440,7.92412566,189.7,189.64,6.92818194]
[1736634045641,6.92818194,189.72,189.66,6.92818194]
[1736634045838,2.6368,189.69,189.66,6.92818194]
[1736634046940,2.6373,189.65,189.62,2.131]
[1736634047544,6.92818194,189.68,189.62,2.131]
[1736634047738,6.92818194,189.68,189.63,6.92818194]
[1736634048243,6.92818194,189.7,189.63,6.92818194]
[1736634048644,2.6369,189.68,189.63,6.92818194]
[1736634050143,2.6369,189.68,189.63,9.56578194]
[1736634052243,2.6369,189.68,189.65,6.92818194]
[1736634052443,2.6367,189.7,189.65,6.92818194]
[1736634053245,2.6367,189.7,189.67,6.92818194]
[1736634055043,2.6367,189.7,189.67,9.56518194]
[1736634056646,2.6364,189.72,189.69,2.6367]
[1736634057146,15.26802566,189.77,189.69,6.92818194]
[1736634057341,2.6362,189.74,189.69,6.92818194]
[1736634057546,2.6362,189.74,189.71,6.92818194]
[1736634058847,2.6366,189.71,189.64,2.0296]
[1736634059047,6.92818194,189.72,189.65,6.92818194]
[1736634059442,6.92818194,189.72,189.66,2.6372]
[1736634060651,6.92818194,189.72,189.67,6.92818194]
[1736634060948,6.92818194,189.74,189.67,6.92818194]
[1736634061247,6.92818194,189.74,189.69,6.92818194]
[1736634061645,2.6364,189.72,189.69,6.92818194]
[1736634061941,2.6364,189.72,189.64,2.0296]
[1736634062143,2.6366,189.7,189.65,6.92818194]
[1736634062649,2.6366,189.7,189.67,6.92818194]
[1736634063351,2.6365,189.71,189.67,6.92818194]
[1736634063545,6.92818194,189.75,189.69,6.92818194]
[1736634063746,2.6363,189.73,189.69,9.56488194]
[1736634064449,2.6363,189.73,189.69,6.92818194]
[1736634064649,2.6363,189.73,189.7,2.6365]
[1736634064845,2.636,189.75,189.71,6.92818194]
[1736634065149,2.636,189.75,189.71,9.56458194]
[1736634065649,2.636,189.75,189.71,2.6364]
[1736634066247,6.92818194,189.75,189.69,2.6366]
[1736634066452,6.92818194,189.73,189.67,6.92818194]
[1736634067753,2.6364,189.72,189.67,9.56508194]
[1736634068156,6.92818194,189.73,189.67,6.92818194]
[1736634068558,2.6367,189.7,189.65,2.6373]
[1736634068858,2.6367,189.7,189.65,9.56548194]
[1736634070560,2.6367,189.7,189.65,2.6373]
[1736634071059,2.6367,189.7,189.66,6.92818194]
[1736634073660,2.6364,189.72,189.68,6.92818194]
[1736634073963,6.92818194,189.75,189.68,6.92818194]
[1736634074559,2.6362,189.73,189.68,6.92818194]
[1736634074761,6.92818194,189.75,189.68,6.92818194]
[1736634075166,2.6365,189.72,189.68,6.92818194]
[1736634077065,2.6365,189.72,189.64,1.9712]
[1736634077066,5.36,189.8,189.7,6.92818194]
[1736634077269,6.92818194,189.77,189.7,9.56468194]
[1736634077670,2.6361,189.74,189.7,9.56468194]
[1736634083067,2.6361,189.74,189.72,6.92818194]
[1736634085872,2.636,189.75,189.72,6.92818194]
[1736634086173,6.92818194,189.79,189.72,6.92818194]
[1736634087173,2.6358,189.76,189.72,6.92818194]
[1736634088073,2.6358,189.76,189.72,9.56448194]
[1736634090875,2.6357,189.77,189.74,6.92818194]
[1736634092379,2.6354,189.79,189.75,2.6359]
[1736634092577,6.92818194,189.81,189.75,2.6359]
[1736634093080,2.6355,189.79,189.75,2.6359]
[1736634095679,2.6355,189.79,189.74,6.92818194]
[1736634095876,2.6355,189.79,189.76,9.56398194]
[1736634096073,2.6352,189.8,189.76,6.92818194]
[1736634097072,2.6352,189.8,189.77,2.6356]
[1736634098680,2.6354,189.79,189.76,9.56398194]
[1736634101474,2.6354,189.79,189.76,6.92818194]
[1736634105879,2.6349,189.83,189.78,9.56358194]
[1736634106084,2.6349,189.83,189.8,6.92818194]
[1736634107079,14.8523076,189.87,189.8,6.92818194]
[1736634107279,2.6345,189.85,189.8,6.92818194]
[1736634107689,2.6345,189.85,189.82,6.92818194]
[1736634109289,6.92818194,189.83,189.71,2.0392]
[1736634109487,6.92818194,189.83,189.77,6.92818194]
[1736634110587,2.6352,189.81,189.77,6.92818194]
[1736634111484,6.92818194,189.83,189.77,6.92818194]
[1736634111685,2.6352,189.8,189.77,6.92818194]
[1736634113486,2.6354,189.79,189.77,6.92818194]
[1736634113887,6.92818194,189.81,189.71,2.0392]
[1736634114088,2.6356,189.78,189.74,6.92818194]
[1736634114992,2.6356,189.78,189.76,6.92818194]
[1736634115793,6.92818194,189.83,189.76,6.92818194]
[1736634117093,2.6355,189.79,189.76,6.92818194]
[1736634131597,2.6355,189.79,189.74,2.636]
[1736634131902,2.6355,189.79,189.76,6.92818194]
[1736634132304,2.6355,189.79,189.74,2.636]
[1736634132495,2.6355,189.79,189.76,6.92818194]
[1736634133506,2.6356,189.77,189.71,2.0392]
[1736634133703,6.92818194,189.82,189.75,6.92818194]
[1736634133903,2.6355,189.78,189.73,2.6361]
[1736634134410,2.6355,189.78,189.75,6.92818194]
[1736634137108,2.6355,189.78,189.74,2.636]
[1736634137309,6.92818194,189.8,189.73,2.6362]
[1736634137509,2.6356,189.77,189.73,2.6362]
[1736634137712,2.6356,189.77,189.74,6.92818194]
[1736634138409,6.92818194,189.8,189.71,2.0392]
[1736634138610,2.636,189.75,189.72,6.92818194]
[1736634139413,2.6362,189.73,189.69,2.0955]
[1736634139607,2.6362,189.73,189.7,6.92818194]
[1736634140316,7.92412566,189.83,189.72,6.92818194]
[1736634140615,2.6361,189.74,189.72,6.92818194]
[1736634142616,6.92818194,189.76,189.69,6.92818194]
[1736634142914,6.92818194,189.74,189.69,6.92818194]
[1736634143914,6.92818194,189.72,189.67,6.22935672]
[1736634144114,6.92818194,189.72,189.65,6.92818194]
[1736634144314,6.92818194,189.72,189.64,2.087]
[1736634144514,6.92818194,189.72,189.65,6.92818194]
[1736634145616,2.637,189.68,189.65,6.92818194]
[1736634147410,2.637,189.68,189.64,2.087]
[1736634147615,2.637,189.68,189.65,6.92818194]
[1736634148015,2.637,189.67,189.65,6.92818194]
[1736634148821,4.86438831,189.66,189.65,6.92818194]
[1736634149525,2.637,189.67,189.65,6.92818194]
[1736634151115,6.92818194,189.7,189.6,2.0265]
[1736634151317,2.6374,189.65,189.63,6.92818194]
[1736634152120,2.6374,189.64,189.63,6.92818194]
[1736634153617,2.6377,189.62,189.61,6.92818194]
[1736634156820,2.6379,189.61,189.59,6.92818194]
[1736634157525,5.34,189.65,189.59,6.92818194]
[1736634157720,2.6376,189.63,189.61,6.92818194]
[1736634158821,5.34,189.65,189.57,4.45173239]
[1736634159023,6.92818194,189.64,189.54,2.036]
[1736634159423,6.92818194,189.64,189.46,7.28226812]
[1736634159424,2.6397,189.48,189.46,7.28226812]
[1736634159627,5.42,189.54,189.46,7.28226812]
[1736634159822,6.92818194,189.5,189.46,7.28226812]
[1736634160023,6.92818194,189.48,189.43,7.28226812]
[1736634160329,6.92818194,189.5,189.43,14.21045006]
[1736634160725,6.92818194,189.5,189.43,7.28226812]
[1736634160925,2.6399,189.47,189.43,7.28226812]
[1736634161429,2.6399,189.47,189.42,9.02828194]
[1736634162828,2.64,189.46,189.42,9.02828194]
[1736634173330,6.92818194,189.48,189.42,9.02828194]
[1736634173536,2.6401,189.45,189.42,9.02828194]
[1736634175131,2.6403,189.44,189.42,9.02828194]
[1736634177441,6.92818194,189.48,189.33,5.44]
[1736634177739,2.6406,189.42,189.4,6.92818194]
[1736634181045,2.6404,189.44,189.4,6.92818194]
[1736634181234,2.6404,189.44,189.42,6.92818194]
[1736634182435,5.6525,189.53,189.42,6.92818194]
[1736634182639,2.6399,189.47,189.44,6.92818194]
[1736634183447,2.64,189.46,189.44,6.92818194]
[1736634192751,2.6398,189.48,189.44,6.92818194]
[1736634192948,6.92818194,189.51,189.35,49.11295147]
[1736634193151,6.92818194,189.51,189.44,6.92818194]
[1736634194152,2.64,189.46,189.44,6.92818194]
[1736634203059,13.75639158,189.52,189.44,6.92818194]
[1736634203261,13.75639158,189.52,189.47,6.92818194]
[1736634203461,5.4,189.52,189.47,6.92818194]
[1736634203864,2.6396,189.49,189.47,6.92818194]
[1736634204060,2.6396,189.49,189.47,1.40612794]
[1736634205163,2.6396,189.49,189.45,2.64]
[1736634205363,2.6396,189.49,189.46,6.92818194]
[1736634205564,2.6396,189.49,189.44,2.6402]
[1736634205764,2.6396,189.49,189.46,6.92818194]
[1736634206466,2.6396,189.49,189.44,2.6402]
[1736634206767,2.6396,189.49,189.46,6.92818194]
[1736634208464,6.92818194,189.47,189.38,7.28226812]
[1736634208670,6.92818194,189.39,189.38,7.28226812]
[1736634209368,2.6409,189.39,189.38,7.28226812]
[1736634209573,2.6409,189.39,189.37,6.92818194]
[1736634211272,5.52,189.4,189.37,6.92818194]
[1736634211665,8.1608,189.4,189.37,6.92818194]
[1736634212471,6.92818194,189.39,189.27,29.1290725]
[1736634212670,6.92818194,189.39,189.32,6.92818194]
[1736634213071,6.92818194,189.39,189.34,6.92818194]
[1736634214177,2.6412,189.37,189.34,6.92818194]
[1736634225583,2.6415,189.36,189.3,2.6421]
[1736634225776,6.92818194,189.37,189.31,6.92818194]
[1736634226475,2.6415,189.35,189.31,6.92818194]
[1736634227078,2.6415,189.35,189.32,6.92818194]
[1736634230282,2.6415,189.35,189.31,2.642]
[1736634230678,2.6415,189.35,189.31,9.57018194]
[1736634232281,2.6415,189.35,189.31,6.92818194]
[1736634239889,2.6415,189.35,189.31,9.57018194]
[1736634240789,5.52,189.4,189.28,6.1204]
[1736634240790,2.6413,189.37,189.33,6.92818194]
[1736634240985,12.44818194,189.4,189.33,6.92818194]
[1736634241289,2.6413,189.37,189.33,6.92818194]
[1736634241681,8.35639158,189.47,189.35,6.92818194]
[1736634241889,2.641,189.39,189.35,6.92818194]
[1736634243586,6.92818194,189.41,189.35,6.92818194]
[1736634243587,2.6411,189.38,189.35,6.92818194]
[1736634244089,2.6411,189.38,189.34,2.6416]
[1736634244289,2.6411,189.38,189.35,6.92818194]
[1736634245590,2.6409,189.39,189.35,9.56958194]
[1736634247985,2.6411,189.38,189.35,6.92818194]
[1736634250888,8.35639158,189.47,189.35,6.92818194]
[1736634251093,6.92818194,189.43,189.37,6.92818194]
[1736634251792,2.6408,189.4,189.37,6.92818194]
[1736634253902,2.6409,189.39,189.37,6.92818194]
[1736634258808,2.6411,189.38,189.37,6.92818194]
[1736634259607,2.6411,189.38,189.35,9.56958194]
[1736634261606,2.6411,189.38,189.35,6.92818194]
[1736634268514,2.6411,189.38,189.35,11.23988194]
[1736634280925,8.35639158,189.47,189.37,6.92818194]
[1736634281220,6.92818194,189.45,189.37,6.92818194]
[1736634281427,2.6406,189.42,189.37,9.56928194]
[1736634281621,2.6406,189.42,189.39,6.92818194]
[1736634281820,6.92818194,189.45,189.39,6.92818194]
[1736634282220,13.77639158,189.47,189.39,6.92818194]
[1736634282421,2.6406,189.42,189.39,6.92818194]
[1736634283217,5.42,189.47,189.41,6.92818194]
[1736634283417,6.92818194,189.43,189.37,6.92818194]
[1736634283820,2.6408,189.4,189.37,6.92818194]
[1736634292333,12.34818194,189.45,189.37,6.92818194]
[1736634292531,2.6407,189.41,189.37,6.92818194]
[1736634297830,2.6407,189.41,189.37,9.56938194]
[1736634299637,2.6407,189.41,189.39,6.92818194]
[1736634300643,15.63885186,189.52,189.4,2.6407]
[1736634300933,6.92818194,189.48,189.36,2.1474]
[1736634301130,8.35639158,189.52,189.42,6.92818194]
[1736634301330,5.42,189.51,189.42,6.92818194]
[1736634301531,6.92818194,189.49,189.42,6.92818194]
[1736634301933,6.92818194,189.49,189.44,6.92818194]
[1736634302133,2.6398,189.47,189.44,6.92818194]
[1736634302328,12.34818194,189.51,189.44,6.92818194]
[1736634302538,6.92818194,189.53,189.46,6.92818194]
[1736634302838,2.6394,189.5,189.46,6.92818194]
[1736634303939,2.6394,189.5,189.46,9.56808194]
[1736634305936,6.92818194,189.51,189.43,2.6403]
[1736634306339,6.92818194,189.51,189.36,7.5674]
[1736634306537,2.6397,189.48,189.45,6.92818194]
[1736634306739,6.92818194,189.51,189.45,6.92818194]
[1736634307243,2.6395,189.5,189.45,6.92818194]
[1736634307442,6.92818194,189.51,189.45,6.92818194]
[1736634307639,6.92818194,189.49,189.42,6.92818194]
[1736634307942,2.6401,189.45,189.42,6.92818194]
[1736634310839,6.92818194,189.47,189.36,2.1474]
[1736634311146,6.92818194,189.45,189.38,6.92818194]
[1736634312344,2.6407,189.41,189.38,6.92818194]
[1736634313143,6.92818194,189.43,189.35,4.3117]
[1736634313344,2.6412,189.38,189.36,6.92818194]
[1736634314143,2.6415,189.35,189.3,2.6422]
[1736634314341,2.6415,189.35,189.34,6.92818194]
[1736634318346,2.6415,189.35,189.32,6.92818194]
[1736634318843,6.92818194,189.39,189.32,6.92818194]
[1736634319040,6.92818194,189.37,189.29,4.0899]
[1736634319345,6.92818194,189.37,189.3,6.92818194]
[1736634319952,2.642,189.32,189.3,6.92818194]
[1736634320148,6.92818194,189.37,189.29,2.0449]
[1736634320351,6.92818194,189.35,189.29,6.92818194]
[1736634322152,2.6421,189.31,189.29,6.92818194]
[1736634326648,5.4,189.38,189.29,6.92818194]
[1736634326956,2.6418,189.33,189.31,6.92818194]
[1736634332153,6.92818194,189.35,189.28,4.7444]
[1736634332458,2.6419,189.32,189.3,6.92818194]
[1736634333155,2.6423,189.3,189.25,2.6429]
[1736634333357,2.6423,189.3,189.27,6.92818194]
[1736634336257,2.6425,189.28,189.26,6.92818194]
[1736634339062,2.6426,189.27,189.25,6.92818194]
[1736634341259,5.4,189.38,189.25,6.92818194]
[1736634341462,2.6423,189.3,189.27,6.92818194]
[1736634357569,7.55450877,189.38,189.27,6.92818194]
[1736634357758,2.6418,189.33,189.29,2.6423]
[1736634361474,5.36,189.36,189.3,6.92818194]
[1736634361676,6.92818194,189.36,189.3,6.92818194]
[1736634361879,6.92818194,189.36,189.31,4.1049]
[1736634363172,9.56958194,189.36,189.32,2.6418]
[1736634364978,9.56958194,189.36,189.32,9.56998194]
[1736634365480,2.6415,189.35,189.32,9.56998194]
[1736634365679,2.6415,189.35,189.32,6.92818194]
[1736634367482,2.6415,189.35,189.31,6.7469]
[1736634367681,2.6415,189.35,189.31,13.67508194]
[1736634370781,2.6416,189.34,189.31,13.67508194]
[1736634371483,2.6416,189.34,189.31,4.1049]
[1736634372388,6.92818194,189.36,189.31,4.1049]
[1736634372586,5.36,189.37,189.31,4.1049]
[1736634372892,6.92818194,189.36,189.31,4.1049]
[1736634373285,2.6418,189.34,189.31,4.1049]
[1736634374792,6.92818194,189.36,189.31,4.1049]
[1736634374994,2.6418,189.33,189.31,4.1049]
[1736634375788,6.92818194,189.36,189.3,6.92818194]
[1736634375991,2.642,189.31,189.28,6.92818194]
[1736634380396,2.642,189.31,189.27,2.6426]
[1736634380598,2.6422,189.3,189.26,2.6427]
[1736634380798,2.6422,189.3,189.28,6.92818194]
[1736634381292,2.6421,189.31,189.28,6.92818194]
[1736634393603,6.92818194,189.34,189.28,6.92818194]
[1736634393803,2.6422,189.3,189.28,6.92818194]
[1736634404415,2.6422,189.3,189.26,9.57088194]
[1736634404713,2.6424,189.29,189.26,6.92818194]
[1736634410417,2.6424,189.29,189.24,9.57118194]
[1736634410614,2.6426,189.27,189.23,4.1527]
[1736634410818,2.6426,189.27,189.24,6.92818194]
[1736634411019,2.6426,189.27,189.23,4.1527]
[1736634411217,6.92818194,189.3,189.23,4.1527]
[1736634411424,2.6429,189.26,189.23,11.08088194]
[1736634412118,2.6429,189.25,189.23,11.08088194]
[1736634415116,2.6428,189.26,189.23,11.08088194]
[1736634417520,2.6428,189.26,189.23,4.1527]
[1736634417719,2.6428,189.26,189.23,11.08088194]
[1736634418918,2.644,189.18,189.16,7.28226812]
[1736634419118,6.92818194,189.18,189.16,7.28226812]
[1736634419317,5.36,189.2,189.16,7.28226812]
[1736634419519,2.6439,189.18,189.16,7.28226812]
[1736634419720,2.6439,189.18,189.13,6.92818194]
[1736634420225,9.57218194,189.17,189.11,2.6448]
[1736634420422,7.55450877,189.3,189.14,6.92818194]
[1736634420618,6.92818194,189.21,189.14,6.92818194]
[1736634420821,12.32818194,189.21,189.14,6.92818194]
[1736634421017,5.4,189.21,189.14,6.92818194]
[1736634421415,5.4,189.21,189.06,11.36886812]
[1736634421416,5.4,189.21,189.16,6.92818194]
[1736634422122,6.92818194,189.23,189.16,6.92818194]
[1736634422619,9.57148194,189.23,189.17,2.6439]
[1736634422822,6.92818194,189.23,189.17,2.6439]
[1736634424323,2.6433,189.22,189.17,2.6439]
[1736634424525,6.92818194,189.21,189.16,6.92818194]
[1736634425128,9.57168194,189.21,189.16,6.92818194]
[1736634425522,9.57168194,189.21,189.15,2.6442]
[1736634429431,6.92818194,189.19,189.15,2.6442]
[1736634432931,6.92818194,189.17,189.06,4.0866]
[1736634433132,6.92818194,189.17,189.11,6.92818194]
[1736634433527,9.57218194,189.17,189.12,2.6447]
[1736634435730,9.57218194,189.17,189.11,9.57298194]
[1736634437133,6.92818194,189.17,189.12,2.6446]
[1736634437331,6.92818194,189.17,189.11,6.92818194]
[1736634437735,9.57228194,189.17,189.11,9.57298194]
[1736634440635,9.57228194,189.17,189.11,2.6448]
[1736634440830,9.57228194,189.17,189.11,9.57298194]
[1736634443033,6.92818194,189.15,189.06,4.0866]
[1736634443232,5.4,189.25,189.11,6.92818194]
[1736634443433,6.92818194,189.16,189.11,6.92818194]
[1736634443836,9.57238194,189.16,189.09,2.6451]
[1736634444035,9.57238194,189.16,189.11,6.92818194]
[1736634446239,7.74125877,189.27,189.06,4.0866]
[1736634446240,6.92818194,189.12,189.06,2.6455]
[1736634446440,6.92818194,189.09,189.05,2.0029]
[1736634447943,2.6449,189.11,189.05,4.6485]
[1736634448144,6.92818194,189.1,189.05,2.0029]
[1736634448542,6.92818194,189.14,189.08,6.92818194]
[1736634449341,9.57258194,189.14,189.08,9.57328194]
[1736634449747,2.644,189.17,189.12,2.6447]
[1736634449948,6.92818194,189.16,189.1,6.92818194]
[1736634450247,6.92818194,189.17,189.13,2.6445]
[1736634452248,6.92818194,189.17,189.12,2.6447]
[1736634457954,9.57218194,189.17,189.12,2.6447]
[1736634463859,6.92818194,189.17,189.11,11.15958194]
[1736634464155,2.6442,189.16,189.11,11.15958194]
[1736634465159,2.6442,189.16,189.11,13.80438194]
[1736634466557,6.92818194,189.17,189.11,11.15958194]
[1736634466753,2.6443,189.15,189.11,11.15958194]
[1736634471567,2.6444,189.14,189.11,4.2314]
[1736634498094,9.57258194,189.14,189.11,4.2314]
[1736634505697,2.6444,189.14,189.11,4.2314]
[1736634505997,9.57258194,189.14,189.11,4.2314]
[1736634506390,9.57258194,189.14,189.09,9.57328194]
[1736634509702,5.44,189.21,189.07,2.6453]
[1736634509703,9.57298194,189.12,189.07,2.6453]
[1736634518812,6.92818194,189.12,189.07,2.6453]
[1736634519111,2.6446,189.13,189.07,2.6453]
[1736634519410,6.92818194,189.12,189.07,2.6453]
[1736634522613,6.92818194,189.12,189.06,6.92818194]
[1736634522815,6.92818194,189.12,189.08,2.6452]
[1736634548334,2.6446,189.13,189.08,2.6452]
[1736634548637,6.92818194,189.12,189.08,2.6452]
[1736634555846,6.92818194,189.12,189.07,2.6454]
[1736634558647,9.57288194,189.12,189.07,2.6454]
[1736634567446,2.6447,189.12,189.07,2.6454]
[1736634567746,9.57288194,189.12,189.07,2.6454]
[1736634571746,5.36,189.18,189.09,6.92818194]
[1736634571952,6.92818194,189.16,189.09,6.92818194]
[1736634572154,2.6443,189.15,189.1,2.6449]
[1736634573049,9.57248194,189.15,189.1,2.6449]
[1736634577653,9.57248194,189.15,189.11,2.6448]
[1736634586858,2.6443,189.15,189.11,2.6448]
[1736634587062,9.57248194,189.15,189.11,2.6448]
[1736634590364,2.645,189.1,189.05,2.6456]
[1736634590661,6.92818194,189.09,189.04,33.4367725]
[1736634590960,6.92818194,189.07,189.04,29.1290725]
[1736634591557,2.6457,189.06,189.04,7.28226812]
[1736634591759,2.6457,189.06,189.02,3.04706267]
[1736634598769,2.6454,189.07,189.02,3.04706267]
[1736634599069,9.57358194,189.07,189.02,3.04706267]
[1736634599770,9.57358194,189.07,189.02,9.97524461]
[1736634602173,5.36,189.11,189.04,6.92818194]
[1736634602371,9.57338194,189.09,189.04,6.92818194]
[1736634606373,9.57338194,189.09,189.03,2.6458]
[1736634606676,9.57338194,189.09,189.03,9.57398194]
[1736634609482,9.57338194,189.09,189.03,2.6458]
[1736634609683,2.6453,189.08,189.03,2.6458]
[1736634626001,6.92818194,189.14,189.06,6.92818194]
[1736634626203,6.92818194,189.14,189.08,6.92818194]
[1736634626696,2.6447,189.12,189.08,6.92818194]
[1736634626898,6.92818194,189.14,189.08,6.92818194]
[1736634628103,9.57268194,189.14,189.09,2.6451]
[1736634632612,2.6445,189.14,189.09,2.6451]
[1736634632805,9.57268194,189.14,189.09,2.6451]
[1736634635308,9.57268194,189.14,189.09,9.57328194]
[1736634636804,9.57268194,189.14,189.09,6.92818194]
[1736634640518,2.6445,189.14,189.09,6.92818194]
[1736634646413,2.6443,189.15,189.09,6.92818194]
[1736634646625,2.6443,189.15,189.1,2.645]
[1736634646918,2.6443,189.15,189.11,6.92818194]
[1736634647714,2.6443,189.15,189.11,9.57298194]
[1736634650825,6.92818194,189.16,189.11,9.57298194]
[1736634651023,9.57238194,189.16,189.12,2.6447]
[1736634651223,0.19072,189.24,189.15,6.92818194]
[1736634651427,6.92818194,189.21,189.15,6.92818194]
[1736634651630,6.92818194,189.21,189.16,2.644]
[1736634652123,6.92818194,189.21,189.15,6.92818194]
[1736634652331,6.92818194,189.21,189.17,2.644]
[1736634653028,6.92818194,189.21,189.16,2.6441]
[1736634653229,2.6434,189.22,189.17,6.92818194]
[1736634653926,6.92818194,189.23,189.17,6.92818194]
[1736634654124,2.6435,189.21,189.17,6.92818194]
[1736634660139,2.6435,189.21,189.16,2.6441]
[1736634660434,2.6435,189.21,189.17,6.92818194]
[1736634663033,2.6433,189.22,189.17,9.57218194]
[1736634665033,2.6433,189.22,189.17,6.92818194]
[1736634666537,2.6433,189.22,189.18,6.92818194]
[1736634667830,2.6432,189.23,189.18,9.57208194]
[1736634671028,2.6432,189.23,189.2,6.92818194]
[1736634671231,2.6432,189.23,189.18,2.6439]
[1736634671432,2.6432,189.23,189.2,6.92818194]
[1736634673536,2.6437,189.2,189.16,2.6441]
[1736634673832,6.92818194,189.21,189.15,6.92818194]
[1736634675135,2.6441,189.17,189.15,6.92818194]
[1736634675843,6.92818194,189.19,189.14,6.92818194]
[1736634676443,12.26818194,189.19,189.14,6.92818194]
[1736634676744,2.6443,189.15,189.14,6.92818194]
[1736634677338,12.26818194,189.19,189.03,10.3292919]
[1736634677543,2.6447,189.13,189.1,6.92818194]
[1736634678133,2.6447,189.12,189.1,6.92818194]
[1736634680138,2.6448,189.11,189.1,6.92818194]
[1736634680339,5.34,189.19,189.0,29.1290725]
[1736634680546,6.92818194,189.13,189.06,6.92818194]
[1736634680841,2.6453,189.08,189.06,6.92818194]
[1736634685543,5.34,189.19,189.01,6.0017]
[1736634685743,6.92818194,189.13,189.07,6.92818194]
[1736634685944,6.92818194,189.13,189.01,6.0017]
[1736634686346,2.6454,189.07,189.01,6.0017]
[1736634686546,2.6454,189.07,189.06,6.92818194]
[1736634686750,6.92818194,189.11,189.01,6.0017]
[1736634687043,2.6456,189.06,189.04,6.92818194]
[1736634687640,2.6456,189.06,189.01,8.6479]
[1736634687839,2.6457,189.05,189.04,6.92818194]
[1736634689148,2.6459,189.04,189.01,6.0017]
[1736634689550,2.6459,189.04,189.02,6.92818194]
[1736634689853,6.92818194,189.05,188.92,7.28226812]
[1736634690046,6.92818194,189.05,188.93,4.0329]
[1736634690248,2.6462,189.02,188.98,6.92818194]
[1736634690546,2.6462,189.02,188.99,6.92818194]
[1736634691150,2.6462,189.02,188.96,2.6468]
[1736634691445,2.6463,189.01,188.99,6.92818194]
[1736634692146,2.6463,189.01,188.94,2.0709]
[1736634692347,2.6463,189.01,188.98,6.92818194]
[1736634692650,6.92818194,189.03,188.94,2.0709]
[1736634692851,2.6465,188.99,188.96,6.92818194]
[1736634694153,6.92818194,189.03,188.94,2.0709]
[1736634694353,2.6469,188.97,188.95,6.92818194]
[1736634696050,2.6467,188.98,188.95,6.92818194]
[1736634697150,2.6467,188.98,188.94,2.0709]
[1736634697351,2.6467,188.98,188.96,6.92818194]
[1736634700257,2.6467,188.98,188.94,8.99908194]
[1736634700760,6.92818194,188.99,188.93,6.92818194]
[1736634701556,2.6469,188.97,188.93,6.92818194]
[1736634701755,6.92818194,188.99,188.93,6.92818194]
[1736634702558,2.6471,188.96,188.9,2.6477]
[1736634702754,6.92818194,188.99,188.92,6.92818194]
[1736634703155,2.6471,188.95,188.9,2.6477]
[1736634703357,2.6471,188.95,188.91,6.92818194]
[1736634703860,2.6472,188.94,188.91,6.92818194]
[1736634704252,6.92818194,188.97,188.91,6.92818194]
[1736634704652,2.6475,188.93,188.91,6.92818194]
[1736634706558,2.6475,188.93,188.88,2.6481]
[1736634706759,2.6475,188.93,188.89,6.92818194]
[1736634707060,2.6475,188.92,188.89,6.92818194]
[1736634709258,2.6475,188.92,188.87,2.6482]
[1736634709464,2.6475,188.92,188.89,6.92818194]
[1736634713260,2.6478,188.91,188.86,2.6483]
[1736634713460,2.6478,188.91,188.89,6.92818194]
[1736634713962,5.36,188.94,188.89,6.92818194]
[1736634714159,2.6478,188.9,188.89,6.92818194]
[1736634714360,5.36,188.94,188.89,6.92818194]
[1736634715966,2.6477,188.91,188.89,6.92818194]